[Event "Prague Festival Challengers 2024"]
[Site "Prague"]
[Date "2024.03.02"]
[Round "5.1"]
[White "Korobov, Anton"]
[Black "Mishra, Abhimanyu"]
[Result "1-0"]
[ECO "D11"]
[WhiteElo "2663"]
[BlackElo "2627"]
[Annotator "ChessBase"]
[PlyCount "245"]
[EventDate "2024.02.22"]
[EventType "tourn"]
[EventCountry "CZE"]
[SourceTitle "playchess.com"]
[Source "ChessBase"]
[SourceQuality "1"]
[TimeControl "40/5400+30:1800+30"]

1. d4 {[%emt 0:00:03]} d5 {[%emt 0:00:01]} 2. c4 {[%emt 0:00:11]} c6 {[%emt 0:00:06]} 3. Nf3 {[%emt 0:00:07]} Nf6 {[%emt 0:00:08]} 4. Nbd2 {[%emt 0:00:05]} Bf5 {[%emt 0:01:02]} 5. Nh4 {[%emt 0:00:09]} Be4 {[%emt 0:00:52]} 6. Qb3 {[%emt 0:00:08]} Qc7 {[%emt 0:11:12]} 7. e3 {[%emt 0:01:28]} e6 {[%emt 0:00:42]} 8. Nxe4 {[%emt 0:00:16]} Nxe4 {[%emt 0:00:34]} 9. Bd3 {[%emt 0:00:20]} Be7 {[%emt 0:02:54]} 10. Nf3 {[%emt 0:02:58]} Nd7 {[%emt 0:00:58]} 11. O-O {[%emt 0:06:23]} O-O {[%emt 0:05:25]} 12. Qc2 {[%emt 0:02:07]} f5 {[%emt 0:00:35]} 13. b3 {[%emt 0:00:35]} a5 {[%emt 0:10:24]} 14. a3 {[%emt 0:04:26]} Bd6 {[%emt 0:06:05]} 15. Bb2 {[%emt 0:02:31]} h6 {[%emt 0:05:18]} 16. g3 {[%emt 0:03:13]} Rf7 {[%emt 0:03:58]} 17. Ne1 {[%emt 0:04:37]} Raf8 {[%emt 0:04:51]} 18. Ng2 {[%emt 0:03:31]} Qb8 {[%emt 0:10:50]} 19. Nf4 {[%emt 0:04:31]} Re8 {[%emt 0:01:42]} 20. f3 {[%emt 0:03:16]} Nef6 {[%emt 0:00:52]} 21. Ng2 {[%emt 0:01:00]} Ref8 {[%emt 0:04:07]} 22. Bc3 {[%emt 0:03:18]} b6 {[%emt 0:03:10]} 23. b4 {[%emt 0:01:13]} axb4 {[%emt 0:00:53]} 24. axb4 {[%emt 0:00:09]} c5 {[%emt 0:03:51]} 25. bxc5 {[%emt 0:03:33]} bxc5 {[%emt 0:00:06]} 26. Ra6 {[%emt 0:00:26]} cxd4 {[%emt 0:04:13]} 27. Bxd4 {[%emt 0:01:51]} Nc5 {[%emt 0:08:17]} 28. Bxc5 {[%emt 0:02:58]} Bxc5 {[%emt 0:00:03]} 29. cxd5 {[%emt 0:04:56]} Rc7 {[%emt 0:00:22]} 30. Qa2 {[%emt 0:00:56]} exd5 {[%emt 0:04:06]} 31. Bxf5 {[%emt 0:00:58]} Re8 {[%emt 0:01:13]} 32. Kh1 {[%emt 0:04:06]} Qb5 {[%emt 0:02:08]} 33. Rb1 {[%emt 0:02:01]} Qc4 {[%emt 0:00:49]} 34. Be6+ {[%emt 0:02:25]} Kh8 {[%emt 0:01:38]} 35. Qxc4 {[%emt 0:00:33]} dxc4 {[%emt 0:00:05]} 36. Bxc4 {[%emt 0:00:06]} Bxe3 {[%emt 0:01:50]} 37. Bd3 {[%emt 0:03:50]} Rc1+ {[%emt 0:01:28]} 38. Rxc1 {[%emt 0:00:11]} Bxc1 {[%emt 0:00:02]} 39. Nh4 {[%emt 0:00:14]} Bb2 {[%emt 0:01:22]} 40. Ra7 {[%emt 0:02:44]} Rd8 {[%emt 0:01:28]} 41. Ng6+ {[%emt 0:34:41]} Kg8 {[%emt 0:04:13]} 42. Ne7+ {[%emt 0:00:00]} Kh8 {[%emt 0:01:28]} 43. Bf5 {[%emt 0:00:00]} Re8 {[%emt 0:04:45]} 44. Kg2 {[%emt 0:00:00]} Bd4 {[%emt 0:02:34]} 45. Rb7 {[%emt 0:00:00]} Bc5 {[%emt 0:02:03]} 46. Ng6+ {[%emt 0:00:00]} Kg8 {[%emt 0:00:15]} 47. f4 {[%emt 0:00:00]} Re2+ {[%emt 0:04:00]} 48. Kh3 {[%emt 0:00:00]} Bg1 {[%emt 0:00:58]} 49. Rb8+ {[%emt 0:00:00]} Re8 {[%emt 0:00:15]} 50. Rb2 {[%emt 0:00:00]} Bc5 {[%emt 0:00:30]} 51. Kg2 {[%emt 0:00:00]} Nd5 {[%emt 0:01:43]} 52. Bd3 {[%emt 0:00:00]} Nf6 {[%emt 0:00:49]} 53. h4 {[%emt 0:00:00]} Ng4 {[%emt 0:03:34]} 54. h5 {[%emt 0:01:27]} Nf6 {[%emt 0:01:01]} 55. Rb5 {[%emt 0:03:40]} Ba3 {[%emt 0:00:27]} 56. Kf3 {[%emt 0:00:42]} Bc1 {[%emt 0:01:18]} 57. Ne5 {[%emt 0:01:01]} Ba3 {[%emt 0:01:17]} 58. Bg6 {[%emt 0:01:02]} Rc8 {[%emt 0:01:34]} 59. g4 {[%emt 0:01:26]} Rf8 {[%emt 0:05:06]} 60. Nc4 {[%emt 0:01:26]} Be7 {[%emt 0:00:26]} 61. Rb7 {[%emt 0:01:03]} Bc5 {[%emt 0:00:45]} 62. Rc7 {[%emt 0:03:56]} Bb4 {[%emt 0:00:07]} 63. Ne3 {[%emt 0:00:57]} Bd6 {[%emt 0:00:49]} 64. Rc6 {[%emt 0:00:29]} Bb8 {[%emt 0:00:58]} 65. Rc4 {[%emt 0:02:45]} Rd8 {[%emt 0:00:20]} 66. Nf5 {[%emt 0:00:43]} Rd3+ {[%emt 0:01:08]} 67. Ke2 {[%emt 0:01:54]} Rd8 {[%emt 0:00:03]} 68. Nd4 {[%emt 0:02:40]} Bd6 {[%emt 0:01:13]} 69. Ne6 {[%emt 0:00:20]} Rb8 {[%emt 0:00:34]} 70. g5 {[%emt 0:00:57]} hxg5 {[%emt 0:00:45]} 71. fxg5 {[%emt 0:00:13]} Nd7 {[%emt 0:00:46]} 72. Rd4 {[%emt 0:03:14]} Rb6 {[%emt 0:00:09]} 73. Be4 {[%emt 0:01:16]} Nf8 {[%emt 0:00:34]} 74. Nd8 {[%emt 0:00:18]} Be7 {[%emt 0:00:51]} 75. Bd5+ {[%emt 0:00:52]} Kh7 {[%emt 0:00:11]} 76. Nf7 {[%emt 0:01:48]} g6 {[%emt 0:00:39]} 77. Re4 {[%emt 0:00:16]} Bxg5 {[%emt 0:00:37]} 78. Nxg5+ {[%emt 0:00:30]} Kg7 {[%emt 0:00:23]} 79. Rf4 {[%emt 0:03:44]} gxh5 {[%emt 0:00:23]} 80. Rf7+ {[%emt 0:00:40]} Kh6 {[%emt 0:00:33]} 81. Ne4 {[%emt 0:00:32]} Ng6 {[%emt 0:00:13]} 82. Ke3 {[%emt 0:00:17]} Ne5 {[%emt 0:00:39]} 83. Rf5 {[%emt 0:01:32]} Ng6 {[%emt 0:00:06]} 84. Ng3 {[%emt 0:01:41]} h4 {[%emt 0:00:26]} 85. Rh5+ {[%emt 0:00:02]} Kg7 {[%emt 0:00:04]} 86. Nf5+ {[%emt 0:00:55]} Kf6 {[%emt 0:00:08]} 87. Nd4 {[%emt 0:00:09]} Rb1 {[%emt 0:01:01]} 88. Rf5+ {[%emt 0:01:28]} Ke7 {[%emt 0:00:33]} 89. Nc6+ {[%emt 0:00:18]} Kd6 {[%emt 0:01:23]} 90. Be4 {[%emt 0:00:20]} Re1+ {[%emt 0:00:08]} 91. Kd3 {[%emt 0:00:30]} Ke6 {[%emt 0:00:35]} 92. Nd4+ {[%emt 0:00:55]} Ke7 {[%emt 0:00:02]} 93. Nf3 {[%emt 0:01:34]} Rd1+ {[%emt 0:00:20]} 94. Ke3 {[%emt 0:00:33]} h3 {[%emt 0:00:48]} 95. Rh5 {[%emt 0:00:21]} Nf8 {[%emt 0:00:14]} 96. Rxh3 {[%emt 0:00:17]} Nd7 {[%emt 0:00:24]} 97. Rh7+ {[%emt 0:00:25]} Kd6 {[%emt 0:00:14]} 98. Rh6+ {[%emt 0:00:04]} Ke7 {[%emt 0:01:03]} 99. Nd4 {[%emt 0:01:07]} Nf6 {[%emt 0:00:32]} 100. Bf3 {[%emt 0:00:02]} Ra1 {[%emt 0:00:33]} 101. Nf5+ {[%emt 0:00:26]} Kf7 {[%emt 0:00:35]} 102. Kf4 {[%emt 0:00:06]} Rf1 {[%emt 0:00:43]} 103. Ne3 {[%emt 0:02:09]} Ra1 {[%emt 0:00:13]} 104. Kg5 {[%emt 0:00:31]} Rg1+ {[%emt 0:00:54]} 105. Kf5 {[%emt 0:00:02]} Ng8 {[%emt 0:00:42]} 106. Rh7+ {[%emt 0:00:32]} Kf8 {[%emt 0:00:20]} 107. Ng4 {[%emt 0:01:42]} Ra1 {[%emt 0:00:31]} 108. Ne5 {[%emt 0:00:33]} Ra6 {[%emt 0:00:46]} 109. Bh5 {[%emt 0:01:19]} Ne7+ {[%emt 0:00:28]} 110. Kg5 {[%emt 0:00:01]} Re6 {[%emt 0:00:34]} 111. Rf7+ {[%emt 0:00:37]} Kg8 {[%emt 0:00:03]} 112. Ng4 {[%emt 0:00:16]} Nd5 {[%emt 0:00:59]} 113. Bg6 {[%emt 0:00:45]} Kh8 {[%emt 0:00:30]} 114. Rh7+ {[%emt 0:00:45]} Kg8 {[%emt 0:00:04]} 115. Nh6+ {[%emt 0:00:18]} Kf8 {[%emt 0:00:04]} 116. Nf5 {[%emt 0:00:17]} Kg8 {[%emt 0:00:51]} 117. Rd7 {[%emt 0:00:35]} Nf6 {[%emt 0:00:40]} 118. Rd8+ {[%emt 0:00:11]} Ne8 {[%emt 0:00:04]} 119. Bxe8 {[%emt 0:00:10]} Kh7 {[%emt 0:00:20]} 120. Rd7+ {[%emt 0:00:18]} Kg8 {[%emt 0:00:31]} 121. Bf7+ {[%emt 0:00:43]} Kh8 {[%emt 0:00:05]} 122. Rd8+ {[%emt 0:00:10]} Kh7 {[%emt 0:00:04]} 123. Bg8+ {[%emt 0:00:10]} 1-0

[Event "Prague Festival Challengers 2024"]
[Site "Prague"]
[Date "2024.03.02"]
[Round "5.2"]
[White "Santos Latasa, Jaime"]
[Black "Rodshtein, Maxim"]
[Result "1-0"]
[ECO "B90"]
[WhiteElo "2615"]
[BlackElo "2580"]
[Annotator "TA"]
[PlyCount "97"]
[EventDate "2024.02.22"]
[EventType "tourn"]
[EventCountry "CZE"]
[SourceTitle "playchess.com"]
[Source "ChessBase"]
[SourceQuality "1"]
[TimeControl "40/5400+30:1800+30"]

{[%evp 28,97,0,0,0,0,18,15,22,20,22,34,25,16,24,0,0,0,0,0,0,0,0,0,0,0,26,23,19,30,19,12,12,0,79,72,78,36,50,57,62,74,66,63,60,58,55,54,52,57,55,58,54,49,54,0,54,50,85,72,127,135,156,153,157,127,206,214,218,211,277,272]} 1. e4 {[%emt 0:00:03]} c5 {[%emt 0:00:07]} 2. Nf3 {[%emt 0:00:11]} d6 {[%emt 0:00:16]} 3. d4 {[%emt 0:00:24]} cxd4 {[%emt 0:00:06]} 4. Nxd4 {[%emt 0:00:04]} Nf6 {[%emt 0:00:06]} 5. Nc3 {[%emt 0:00:03]} a6 {[%emt 0:00:04]} 6. Be3 {[%emt 0:01:35]} Ng4 {[%emt 0:00:23]} 7. Bc1 {[%emt 0:02:14]} Nf6 {[%emt 0:00:07]} 8. h3 {[%emt 0:01:28]} e5 {[%emt 0:00:20]} 9. Nb3 {[%emt 0:00:08]} Be6 {[%emt 0:00:27] B90: Sicilian Najdorf: Unusual White 6th moves, 6 Be3 Ng4 and 6 Be3 e5.} 10. Be3 {[%emt 0:00:22]} Be7 {[%emt 0:00:37]} 11. Qd2 {[%emt 0:01:12] 11.Nd5 is the recent fashion.} O-O {[%emt 0:01:42]} 12. O-O-O {[%emt 0:00:38]} Nbd7 {[%emt 0:01:01]} 13. g4 {[%emt 0:00:40]} b5 {[%emt 0:00:50]} 14. Kb1 {[%emt 0:01:25]} b4 {[%emt 0:02:40]} 15. Nd5 {[%emt 0:00:21]} Bxd5 $1 {[%emt 0:00:10]} 16. exd5 {[%emt 0:00:05]} Nb6 {[%emt 0:00:33]} 17. Qxb4 {[%emt 0:00:39]} Nfxd5 {[%emt 0:00:08]} 18. Bxb6 $1 {[%emt 0:00:18]} Nxb6 {[%emt 0:00:05]} 19. Qe4 {[%emt 0:00:09]} g6 {[%emt 0:01:48]} 20. f4 {[%emt 0:01:23]} d5 {[%emt 0:01:47]} 21. Qxe5 {[%emt 0:01:35]} Bf6 {[%emt 0:00:06]} 22. Qe1 $146 {[%emt 0:03:21]} ({Predecessor:} 22. Qe3 Re8 23. Qd2 Qc7 24. c3 Rab8 25. g5 {½-½ Bauer,R-Bartsch,R Theme 23191 freechess.de 2021}) 22... Qc7 {[%emt 0:14:43]} 23. Rh2 {[%emt 0:09:27]} Rfe8 {[%emt 0:17:17]} 24. Re2 {[%emt 0:06:17]} Rxe2 {[%emt 0:01:13]} 25. Qxe2 {[%emt 0:03:34]} Qxf4 {[%emt 0:04:08]} 26. Bg2 {[%emt 0:03:53]} a5 {[%emt 0:12:47]} 27. Rf1 {[%emt 0:07:29]} Qe5 $1 {[%emt 0:02:18]} 28. Qxe5 {[%emt 0:00:13]} Bxe5 {[%emt 0:00:02]} 29. Rd1 {[%emt 0:00:42]} a4 {[%emt 0:06:33]} 30. Nd4 {[%emt 0:05:42]} a3 {[%emt 0:05:28]} (30... Rc8 $11 {remains equal.}) 31. b3 $16 {[%emt 0:01:08]} Rc8 {[%emt 0:00:38]} 32. Rd3 {[%emt 0:05:22]} Kg7 {[%emt 0:01:07]} 33. Ne2 {[%emt 0:01:01]} Re8 {[%emt 0:01:09]} 34. Kc1 $1 {[%emt 0:03:05]} (34. Bxd5 Nxd5 35. Rxd5 Bf6 $17) 34... Bf6 {[%emt 0:03:59]} 35. Kd1 {[%emt 0:00:25]} Re5 {[%emt 0:00:13]} 36. Nd4 {[%emt 0:08:54]} h5 {[%emt 0:00:52]} 37. Nf3 {[%emt 0:01:23]} Re4 {[%emt 0:03:02]} 38. gxh5 {[%emt 0:00:05]} gxh5 {[%emt 0:00:05]} 39. c3 {[%emt 0:00:10]} Rf4 {[%emt 0:04:29]} 40. Ke2 {[%emt 0:03:41]} Re4+ {[%emt 0:00:37]} 41. Kd1 {[%emt 0:35:54]} Rf4 $1 {[%emt 0:30:44]} 42. Nd4 {[%emt 0:01:34]} Kg6 {[%emt 0:11:38]} 43. Ke2 {[%emt 0:05:58]} Bh4 {[%emt 0:01:20]} (43... Bxd4 $142 44. cxd4 (44. Rxd4 Rxd4 45. cxd4 Kf5 $11) 44... Rf6) 44. Bf3 $16 {[%emt 0:01:15]} Nd7 {[%emt 0:00:00]} 45. Nc6 $1 {[%emt 0:00:00]} (45. Bxd5 Rf2+ 46. Kd1 Rxa2 $11) 45... Nb6 {[%emt 0:00:00]} 46. Nb4 {[%emt 0:00:00]} (46. Bxd5 $2 {is the wrong capture.} Rf2+ 47. Ke3 Rxa2 $19 (47... Nxd5+ 48. Rxd5 Rxa2 49. Ra5 $17)) 46... d4 {[%emt 0:00:00]} (46... Rf6 $16 47. Nxd5 (47. Bxd5 Rf2+ 48. Kd1 Nxd5 $11) 47... Nxd5 48. Rxd5 Re6+ 49. Kd2 f5) 47. cxd4 $18 {[%emt 0:00:00]} Be7 {[%emt 0:00:00]} 48. Nc6 {[%emt 0:00:00]} Bd6 {[%emt 0:00:00]} 49. b4 {[%emt 0:00:00]} 1-0

[Event "Prague Festival Challengers 2024"]
[Site "Prague"]
[Date "2024.03.02"]
[Round "5.3"]
[White "Finek, Vaclav"]
[Black "Gurel, Ediz"]
[Result "0-1"]
[ECO "D11"]
[WhiteElo "2416"]
[BlackElo "2560"]
[Annotator "TA"]
[PlyCount "112"]
[EventDate "2024.02.22"]
[EventType "tourn"]
[EventCountry "CZE"]
[SourceTitle "playchess.com"]
[Source "ChessBase"]
[SourceQuality "1"]
[TimeControl "40/5400+30:1800+30"]

{[%evp 11,112,-12,8,0,0,7,0,0,12,-13,-11,-23,-19,-16,-17,-37,-45,-30,-26,-33,-30,-34,-38,-45,-17,-10,-9,-4,-8,-10,-12,-38,-11,-6,-12,-43,0,-6,-7,-6,-4,-9,-3,-11,-11,-15,-15,-31,-19,-17,0,-20,-13,-34,-22,-63,-75,-77,-73,-69,-74,-67,-76,-139,-141,-130,-87,-85,-87,-143,-141,-180,-181,-177,-179,-186,-186,-218,-228,-307,-288,-316,-291,-319,-316,-425,-416,-660,-854,-953,-951,-1332,-1093,-2146,-1804,-5289,-3775,-29968,-11106,-29963,-29964,-29937,-5840]} 1. d4 {[%emt 0:00:02]} d5 {[%emt 0:00:08]} 2. c4 {[%emt 0:00:04]} c6 {[%emt 0:00:05]} 3. Nf3 {[%emt 0:00:04]} Nf6 {[%emt 0:00:06]} 4. Qc2 {[%emt 0:00:04]} g6 {[%emt 0:00:10]} 5. Bf4 {[%emt 0:00:04]} dxc4 {[%emt 0:00:13]} 6. Qxc4 {[%emt 0:00:04]} Bg7 {[%emt 0:00:10] Black is weak on the dark squares} 7. e3 {[%emt 0:00:11]} O-O {[%emt 0:00:08]} 8. Be2 {[%emt 0:00:48]} Be6 {[%emt 0:00:16]} 9. Qc2 {[%emt 0:00:56] The position is equal.} Qa5+ {[%emt 0:00:32]} 10. Qd2 {[%emt 0:11:11]} Qxd2+ {[%emt 0:06:42]} 11. Nbxd2 {[%emt 0:00:07] [#]} c5 $1 {[%emt 0:00:16]} 12. dxc5 {[%emt 0:13:24]} (12. Ng5 cxd4) 12... Nc6 {[%emt 0:00:31]} 13. Nd4 {[%emt 0:04:26]} Nxd4 {[%emt 0:06:18]} 14. exd4 {[%emt 0:00:06]} Nd5 {[%emt 0:00:03][%csl LRd4,LRf4][%cal Bf6d5,Bd5b4,Bb4c2][%mdl 32]} 15. Be3 {[%emt 0:05:12]} Nb4 {[%emt 0:00:10] ...Nc2+ is the strong threat.} 16. O-O {[%emt 0:06:32]} Nc2 {[%emt 0:01:34]} (16... Nxa2 $6 17. Bf3 Rad8 18. d5 (18. Bxb7 Bxd4 19. Bxd4 Rxd4 $11) 18... Rxd5 19. Rxa2 $11) 17. Rad1 {[%emt 0:02:51]} Nxd4 {[%emt 0:06:31]} 18. Bc4 {[%emt 0:00:56]} Bf5 {[%emt 0:04:46]} 19. Bd5 {[%emt 0:09:03]} Nc6 {[%emt 0:05:52]} 20. Nc4 {[%emt 0:01:41]} Rfd8 {[%emt 0:01:03]} 21. Bg5 {[%emt 0:18:17]} Kf8 {[%emt 0:12:10]} (21... Rxd5 $5 22. Rxd5 Be6 $11) 22. Rfe1 {[%emt 0:01:40]} f6 {[%emt 0:00:27]} 23. Be3 {[%emt 0:01:08]} Rd7 {[%emt 0:01:43]} (23... Rxd5 $5 24. Rxd5 Be6 $17) 24. Bf3 {[%emt 0:02:21]} Rad8 {[%emt 0:00:39]} 25. Rxd7 {[%emt 0:03:01]} Rxd7 {[%emt 0:00:05]} 26. Rc1 {[%emt 0:00:42]} Be6 {[%emt 0:04:43]} 27. b3 {[%emt 0:06:29]} f5 {[%emt 0:01:56]} 28. g3 {[%emt 0:00:48]} Kf7 {[%emt 0:05:31]} 29. h4 {[%emt 0:01:25]} Bf6 {[%emt 0:01:47]} 30. Kg2 {[%emt 0:01:55]} Kg7 {[%emt 0:04:38]} 31. Re1 {[%emt 0:06:41]} Bf7 {[%emt 0:01:52]} 32. Bf4 {[%emt 0:00:51]} Bd5 {[%emt 0:12:20]} 33. Bxd5 {[%emt 0:00:17]} Rxd5 {[%emt 0:00:03]} 34. Be3 {[%emt 0:00:07]} Bc3 {[%emt 0:01:37]} 35. Rc1 {[%emt 0:01:31]} Bb4 $36 {[%emt 0:00:24][%mdl 2048] Keeping White busy.} 36. Nb2 {[%emt 0:00:26]} Ba3 {[%emt 0:00:57]} 37. Rd1 {[%emt 0:00:27]} (37. Rc2 $142) 37... Rxd1 $17 {[%emt 0:06:42]} 38. Nxd1 {[%emt 0:00:06][%mdl 4096] Endgame. KBN-KBN} Bb4 {[%emt 0:00:11] Prevents Nc3.} 39. Nb2 {[%emt 0:01:12]} Kf6 {[%emt 0:00:46]} 40. Nd3 {[%emt 0:00:48]} (40. Kf1 $142) 40... e5 {[%emt 0:00:46]} 41. f3 {[%emt 0:06:21]} Ke6 {[%emt 0:01:11]} 42. Kf1 {[%emt 0:03:33]} (42. f4 $2 e4 43. Nxb4 Nxb4) 42... Kd5 {[%emt 0:00:11]} 43. Ke2 {[%emt 0:00:08]} a6 {[%emt 0:03:18]} 44. Kd1 {[%emt 0:04:52]} Ba3 {[%emt 0:00:50]} 45. g4 {[%emt 0:04:33]} fxg4 {[%emt 0:02:03]} 46. fxg4 {[%emt 0:00:24]} Nb4 {[%emt 0:01:18]} 47. c6 {[%emt 0:03:00]} bxc6 {[%emt 0:01:54]} (47... Nxd3 $2 {perishes.} 48. c7 $18 (48. cxb7 $2 {loses.} Bd6 $19)) ({But not} 47... Nxc6 48. h5 $19) 48. Nxb4+ {[%emt 0:03:25]} Bxb4 $19 {[%emt 0:00:01] KB-KB} 49. h5 {[%emt 0:00:08] [#]} (49. Ke2 $142) 49... gxh5 $1 {[%emt 0:02:46]} 50. gxh5 {[%emt 0:00:06]} e4 {[%emt 0:02:59]} 51. Bc1 {[%emt 0:03:51]} Ke5 {[%emt 0:00:56]} 52. a3 {[%emt 0:01:03]} Be7 {[%emt 0:00:16] And now ...Ke6 would win.} 53. Kc2 {[%emt 0:01:48]} Kf5 {[%emt 0:00:30]} 54. b4 {[%emt 0:00:11]} Bg5 {[%emt 0:00:32] ( -> ...Bxc1)} 55. Bb2 {[%emt 0:00:06]} Kg4 {[%emt 0:00:05]} 56. a4 {[%emt 0:00:08]} Kxh5 {[%emt 0:00:36] Weighted Error Value: White=0.66/Black=0.09 (flawless) .  Mistake:       	White=3     	---        Inaccurate:     	White=5     	Black=4      OK:         	White=16    	Black=27     Best:        	---       	Black=1      Strong:       	---       	Black=1} 0-1

[Event "Prague Festival Challengers 2024"]
[Site "Prague"]
[Date "2024.03.02"]
[Round "5.4"]
[White "Vaishali, Rameshbabu"]
[Black "L'Ami, Erwin"]
[Result "0-1"]
[ECO "B13"]
[WhiteElo "2481"]
[BlackElo "2627"]
[Annotator "TA"]
[PlyCount "134"]
[EventDate "2024.02.22"]
[EventType "tourn"]
[EventCountry "CZE"]
[SourceTitle "playchess.com"]
[Source "ChessBase"]
[SourceQuality "1"]
[TimeControl "40/5400+30:1800+30"]

{[%evp 57,134,70,100,-66,-74,-64,-62,-72,-72,-58,-69,-90,-74,-73,-72,-77,460,-80,-83,-82,-78,-80,-64,-172,-162,-200,-186,-216,-174,-140,-132,-125,-131,-99,-117,-473,-466,-404,-22,-22,-22,-22,-22,-22,-22,-22,-22,-22,-22,-402,-429,-980,-819,-5197,-3920,-6115,0,-29979,-29980,-29980,-29981,-29984,-29985,-29985,-29984,-29984,-29985,-29985,-29986,-29986,-29987,-29987,-29988,-29988,-29989,-29989,-29990,-29990,-29991]} 1. e4 {[%emt 0:00:18]} c6 {[%emt 0:00:12]} 2. d4 {[%emt 0:00:12]} d5 {[%emt 0:00:10]} 3. exd5 {[%emt 0:00:17]} cxd5 {[%emt 0:00:08]} 4. Bd3 {[%emt 0:00:04]} Nf6 {[%emt 0:00:18]} 5. c3 {[%emt 0:01:04]} Bg4 {[%emt 0:00:11]} 6. Qb3 {[%emt 0:01:09]} Qc7 {[%emt 0:00:10]} 7. h3 {[%emt 0:00:08]} Bd7 {[%emt 0:00:22]} 8. Nf3 {[%emt 0:00:31]} e6 {[%emt 0:00:30]} 9. O-O {[%emt 0:00:09]} Bd6 {[%emt 0:00:24]} 10. Re1 {[%emt 0:00:28]} Bc6 {[%emt 0:00:26]} 11. Qc2 {[%emt 0:04:53]} Nbd7 {[%emt 0:02:38]} 12. b3 {[%emt 0:02:26]} O-O {[%emt 0:04:34]} 13. Ba3 {[%emt 0:01:16]} Bxa3 {[%emt 0:03:07]} 14. Nxa3 {[%emt 0:00:04]} Rfc8 {[%emt 0:00:21]} 15. Re3 {[%emt 0:09:49]} Qa5 {[%emt 0:09:20]} 16. Qb2 {[%emt 0:02:52]} b5 {[%emt 0:01:29]} 17. b4 {[%emt 0:19:08]} Qb6 {[%emt 0:07:34]} 18. Ne5 {[%emt 0:00:50]} a6 {[%emt 0:07:30]} 19. Nc2 {[%emt 0:03:09]} Nf8 {[%emt 0:04:26]} 20. Rae1 {[%emt 0:09:49]} a5 {[%emt 0:09:54]} 21. bxa5 {[%emt 0:03:20]} Qxa5 {[%emt 0:04:57]} 22. Nb4 {[%emt 0:05:23]} Bb7 {[%emt 0:04:11]} 23. Rf3 {[%emt 0:05:17]} Rc7 {[%emt 0:04:27]} 24. Rxf6 {[%emt 0:11:16]} gxf6 {[%emt 0:00:19]} 25. Ng4 {[%emt 0:00:02]} f5 {[%emt 0:03:47]} 26. Nf6+ {[%emt 0:01:32]} Kg7 {[%emt 0:02:45]} 27. Nh5+ {[%emt 0:00:13]} Kh8 {[%emt 0:00:32]} 28. Qd2 {[%emt 0:08:06]} f6 {[%emt 0:01:13]} 29. Qh6 {[%emt 0:00:26]} Rf7 {[%emt 0:02:01] [#]} 30. Bxf5 $2 {[%emt 0:00:31]} (30. Re3 $1 $16) 30... Qc7 $1 $15 {[%emt 0:05:06]} (30... exf5 $2 31. Re7 $18) 31. Bxe6 {[%emt 0:09:04]} Re8 $1 {[%emt 0:01:20]} 32. Nf4 $1 {[%emt 0:00:03]} (32. Nxd5 $2 Bxd5 33. Rb1 Rxe6 $19) 32... Nxe6 {[%emt 0:07:50]} 33. Rxe6 {[%emt 0:00:03]} (33. Nxe6 $2 Qd6 (33... Qxc3 $2 34. Re2 $19) 34. Re3 (34. Qe3 $2 Rfe7 $19) 34... Rxe6 $19) 33... Rxe6 {[%emt 0:00:55]} 34. Nxe6 {[%emt 0:00:04]} Qxc3 {[%emt 0:00:51]} 35. Nd8 {[%emt 0:01:02]} Rg7 {[%emt 0:00:36]} 36. Qxf6 {[%emt 0:01:07]} Qe1+ $1 {[%emt 0:01:48]} 37. Kh2 {[%emt 0:00:02]} Qe7 {[%emt 0:00:15]} 38. Qxe7 {[%emt 0:00:39]} Rxe7 {[%emt 0:00:06]} 39. f4 {[%emt 0:02:40]} Bc8 $1 {[%emt 0:02:02]} 40. g4 {[%emt 0:00:30]} (40. Ndc6 $1 $15 Re2 41. Kg3) 40... Re4 $19 {[%emt 0:04:08]} 41. f5 {[%emt 0:13:24]} Rxd4 {[%emt 0:01:03]} 42. Nbc6 {[%emt 0:00:09]} Re4 {[%emt 0:07:06]} 43. Nf7+ {[%emt 0:05:21]} Kg7 {[%emt 0:02:03]} 44. Nd6 {[%emt 0:00:04]} Re2+ {[%emt 0:02:05]} 45. Kg3 {[%emt 0:00:02]} Bd7 {[%emt 0:02:16]} 46. Kf3 $2 {[%emt 0:05:42][%mdl 8192]} (46. Nb8 $17 Be8 47. Kf3) 46... Rxa2 $19 {[%emt 0:03:39]} 47. Ne5 {[%emt 0:00:39] [#]} Kf6 $2 {[%emt 0:03:26]} (47... Ra6 $1 $19 48. f6+ (48. Nb7 b4) 48... Kxf6 49. Nxd7+ Ke7 50. Nxb5 Kxd7) 48. Nxd7+ $11 {[%emt 0:00:37]} Ke7 {[%emt 0:00:16]} 49. Nxb5 {[%emt 0:00:14]} Kxd7 {[%emt 0:00:08]} 50. Kf4 $1 {[%emt 0:00:23]} Ra5 {[%emt 0:04:02]} 51. Nd4 {[%emt 0:01:47]} Kd6 {[%emt 0:00:29]} 52. Nf3 {[%emt 0:02:06]} Ra4+ {[%emt 0:00:57]} 53. Kg5 $2 {[%emt 0:02:03][%mdl 8192]} (53. Kg3 $1 $11 {and White is okay.}) 53... Re4 $19 {[%emt 0:07:35]} 54. Kf6 {[%emt 0:01:44]} (54. Kh6 $142 Rf4 55. Ne1) 54... d4 $19 {[%emt 0:01:37]} 55. g5 {[%emt 0:02:04]} d3 $1 {[%emt 0:00:21]} 56. h4 {[%emt 0:01:41] [#]} Rxh4 $2 {[%emt 0:05:13]} ({Black should play} 56... Rf4 $3 $19 {[%mdl 512]} 57. Nd2 Kd5 (57... Rxh4 $2 58. Kg7 $19)) 57. Nd2 $2 {[%emt 0:00:32][%mdl 8192]} (57. Nxh4 d2 58. g6 d1=Q $19 (58... d1=B 59. gxh7 Ba4 60. h8=Q Bb5 61. Qd8+ Kc5 62. Ke7 Bc4 63. f6)) (57. g6 $11 hxg6 58. Nxh4) 57... Rf4 {[%emt 0:00:27]} 58. Nb1 {[%emt 0:00:30]} Kd5 {[%emt 0:00:43]} 59. Nd2 {[%emt 0:00:30]} Rf2 {[%emt 0:00:44]} 60. Nb1 {[%emt 0:00:22]} Ke4 {[%emt 0:00:26]} 61. Nc3+ {[%emt 0:00:11] [#]} Kd4 $1 {[%emt 0:00:11]} 62. Nb5+ {[%emt 0:00:53]} Kc4 {[%emt 0:00:36]} 63. Nd6+ {[%emt 0:00:12]} Kd5 {[%emt 0:00:12]} 64. Nb5 {[%emt 0:00:04]} d2 {[%emt 0:00:13]} 65. Nc3+ {[%emt 0:00:37]} Kd4 {[%emt 0:00:11]} 66. Nd1 {[%emt 0:00:14]} Rf1 {[%emt 0:00:08]} 67. Nb2 {[%emt 0:00:04]} Rb1 {[%emt 0:00:24]} 0-1